[Event "Gonzaga Classic Masters 2020"]
[Site "Dublin/"]
[Date "2020.01.25"]
[Round "3.16"]
[White "Fox, Anthony"]
[Black "Venkatesan, Kavin"]
[Result "1/2-1/2"]
[ECO "B23"]
[WhiteElo "2003"]
[BlackElo "1815"]
[Annotator "NA RC"]
[PlyCount "80"]
[EventDate "2020.01.24"]
[EventType "swiss"]
[EventCountry "IRL"]
[SourceTitle "playchess.com"]
[Source "ChessBase"]
[SourceQuality "1"]
[TimeControl "5400+30"]

1. e4 {[%emt 1:30:30]} c5 {[%emt 1:30:30]} 2. Nc3 {[%emt 0:00:30]} a6 {[%emt 0:00:30]} 3. a4 {[%emt 0:00:30]} Nc6 {[%emt 0:00:30]} 4. g3 {[%emt 0:00:30]} e6 {[%emt 0:00:30]} 5. Bg2 {[%emt 0:00:30]} g6 {[%emt 0:00:30]} 6. Nge2 {[%emt 0:00:30]} Bg7 {[%emt 0:00:30]} 7. d3 {[%emt 0:00:30]} d6 {[%emt 0:00:30]} 8. O-O {[%emt 0:00:30]} Nge7 {[%emt 0:00:30]} 9. Be3 {[%emt 0:00:30]} Nd4 {[%emt 0:00:30]} 10. Qd2 {[%emt 0:00:30]} O-O {[%emt 0:00:30]} 11. Nd1 {[%emt 0:00:30]} Rb8 {[%emt 0:00:30]} 12. Nc1 {[%emt 0:00:30]} b6 {[%emt 0:00:30]} 13. c3 {[%emt 0:00:30]} Ndc6 {[%emt 0:00:30]} 14. Bh6 {[%emt 0:00:30]} Bb7 {[%emt 0:00:30]} 15. Bxg7 {[%emt 0:00:30]} Kxg7 {[%emt 0:00:30]} 16. Ne3 {[%emt 0:00:30]} f5 {[%emt 0:00:30]} 17. f4 {[%emt 0:00:30]} d5 {[%emt 0:00:30]} 18. exd5 {[%emt 0:00:30]} exd5 {[%emt 0:00:30]} 19. d4 {[%emt 0:00:30]} cxd4 {[%emt 0:00:30]} 20. cxd4 {[%emt 0:00:30]} a5 {[%emt 0:00:30]} 21. Re1 {[%emt 0:00:30]} Rc8 {[%emt 0:00:30]} 22. Ra3 {[%emt 0:00:30]} Qd6 {[%emt 0:00:30]} 23. Nc2 {[%emt 0:00:30]} Ba6 {[%emt 0:00:30]} 24. Rae3 {[%emt 0:00:30]} Ng8 {[%emt 0:00:30]} 25. Na2 {[%emt 0:00:30]} Nf6 {[%emt 0:00:30]} 26. Nc3 {[%emt 0:00:30]} Ne4 {[%emt 0:00:30]} 27. Qd1 {[%emt 0:00:30]} Kh8 {[%emt 0:00:30]} 28. Bf1 {[%emt 0:00:30]} Bxf1 {[%emt 0:00:30]} 29. Rxf1 {[%emt 0:00:30]} Na7 {[%emt 0:00:30]} 30. Nxe4 {[%emt 0:00:30]} fxe4 {[%emt 0:00:30]} 31. Rc3 {[%emt 0:00:30]} Rxc3 {[%emt 0:00:30]} 32. bxc3 {[%emt 0:00:30]} Qc6 {[%emt 0:00:30]} 33. Ne3 {[%emt 0:00:30]} Qxc3 {[%emt 0:00:30]} 34. Nxd5 {[%emt 0:00:30]} Qc6 {[%emt 0:00:30]} 35. Ne3 {[%emt 0:00:30]} Rd8 {[%emt 0:00:30]} 36. Qa1 {[%emt 0:00:30]} Qf6 {[%emt 0:00:30]} 37. d5 {[%emt 0:00:30]} Qxa1 {[%emt 0:00:30]} 38. Rxa1 {[%emt 0:00:30]} Kg7 {[%emt 0:00:30]} 39. Rc1 {[%emt 0:00:30]} Rd7 {[%emt 0:00:30]} 40. Rb1 {[%emt 0:00:30]} Nc8 {[%emt 0:00:30]} 1/2-1/2

[Event "Gonzaga Classic Masters 2020"]
[Site "Dublin/"]
[Date "2020.01.25"]
[Round "3.17"]
[White "Nolan, Dermot"]
[Black "Peoples, Jonathon"]
[Result "0-1"]
[ECO "C11"]
[WhiteElo "1836"]
[BlackElo "1909"]
[Annotator "NA RC"]
[PlyCount "72"]
[EventDate "2020.01.24"]
[EventType "swiss"]
[EventCountry "IRL"]
[SourceTitle "playchess.com"]
[Source "ChessBase"]
[SourceQuality "1"]
[TimeControl "5400+30"]

1. e4 {[%emt 0:00:00]} e6 {[%emt 0:00:00]} 2. d4 {[%emt 0:00:30]} d5 {[%emt 0:00:30]} 3. Nc3 {[%emt 0:00:30]} Nf6 {[%emt 0:00:30]} 4. e5 {[%emt 0:00:30]} Nfd7 {[%emt 0:00:30]} 5. f4 {[%emt 0:00:30]} c5 {[%emt 0:00:30]} 6. Nf3 {[%emt 0:00:30]} Nc6 {[%emt 0:00:30]} 7. Be3 {[%emt 0:00:30]} a6 {[%emt 0:00:30]} 8. Qd2 {[%emt 0:00:30]} b5 {[%emt 0:00:30]} 9. dxc5 {[%emt 0:00:30]} Bxc5 {[%emt 0:00:30]} 10. Bxc5 {[%emt 0:00:30]} Nxc5 {[%emt 0:00:30]} 11. Nd4 {[%emt 0:00:30]} Qb6 {[%emt 0:00:30]} 12. Nxc6 {[%emt 0:00:30]} Qxc6 {[%emt 0:00:30]} 13. Bd3 {[%emt 0:00:30]} Bb7 {[%emt 0:00:30]} 14. Ne2 {[%emt 0:00:30]} Ne4 {[%emt 0:00:30]} 15. Bxe4 {[%emt 0:00:30]} dxe4 {[%emt 0:00:30]} 16. O-O-O {[%emt 0:00:30]} O-O {[%emt 0:00:30]} 17. Qe3 {[%emt 0:00:30]} Qc4 {[%emt 0:00:30]} 18. Kb1 {[%emt 0:00:30]} Rac8 {[%emt 0:00:30]} 19. Rd2 {[%emt 0:00:30]} Bd5 {[%emt 0:00:30]} 20. b3 {[%emt 0:00:30]} Qb4 {[%emt 0:00:30]} 21. Kb2 {[%emt 0:00:30]} a5 {[%emt 0:00:30]} 22. a3 {[%emt 0:00:30]} Qe7 {[%emt 0:00:30]} 23. Nc3 {[%emt 0:00:30]} b4 {[%emt 0:00:30]} 24. axb4 {[%emt 0:00:30]} axb4 {[%emt 0:00:30]} 25. Nxd5 {[%emt 0:00:30]} exd5 {[%emt 0:00:30]} 26. Rxd5 {[%emt 0:00:30]} Qc7 {[%emt 0:00:30]} 27. Rd2 {[%emt 0:00:30]} Qc3+ {[%emt 0:00:30]} 28. Qxc3 {[%emt 0:00:30]} bxc3+ {[%emt 0:00:30]} 29. Kc1 {[%emt 0:00:30]} cxd2+ {[%emt 0:00:30]} 30. Kxd2 {[%emt 0:00:30]} Rfd8+ {[%emt 0:00:30]} 31. Kc1 {[%emt 0:00:30]} Rc3 {[%emt 0:00:30]} 32. Re1 {[%emt 0:00:30]} Rdc8 {[%emt 0:00:30]} 33. Rxe4 {[%emt 0:00:30]} Rxc2+ {[%emt 0:00:30]} 34. Kd1 {[%emt 0:00:30]} Rxg2 {[%emt 0:00:30]} 35. Rc4 {[%emt 0:00:30]} Rxc4 {[%emt 0:00:30]} 36. bxc4 {[%emt 0:00:30]} Kf8 {[%emt 0:00:30]} 0-1

[Event "Gonzaga Classic Masters 2020"]
[Site "Dublin/"]
[Date "2020.01.26"]
[Round "4.3"]
[White "Korneev, Oleg"]
[Black "Margolin, Boris"]
[Result "1-0"]
[ECO "B29"]
[WhiteElo "2513"]
[BlackElo "2396"]
[Annotator "ChessBase"]
[PlyCount "55"]
[EventDate "2020.01.24"]
[EventType "swiss"]
[EventCountry "IRL"]
[SourceTitle "playchess.com"]
[Source "ChessBase"]
[SourceQuality "1"]
[TimeControl "5400+30"]

1. e4 {[%emt 0:03:38]} c5 {[%emt 0:00:00]} 2. Nf3 {[%emt 0:00:05]} Nf6 {[%emt 0:00:05]} 3. e5 {[%emt 0:00:05]} Nd5 {[%emt 0:00:06]} 4. Nc3 {[%emt 0:00:03]} Nxc3 {[%emt 0:00:30]} 5. dxc3 {[%emt 0:04:39]} Nc6 {[%emt 0:00:06]} 6. Bf4 {[%emt 0:00:22]} e6 {[%emt 0:00:44]} 7. Qe2 {[%emt 0:05:36]} Qc7 {[%emt 0:06:52]} 8. O-O-O {[%emt 0:00:32]} h6 {[%emt 0:00:44]} 9. Bg3 {[%emt 0:00:32]} Ne7 {[%emt 0:06:22]} 10. Nd2 {[%emt 0:10:26]} b6 {[%emt 0:02:39]} 11. Ne4 {[%emt 0:09:11]} Nf5 {[%emt 0:00:50]} 12. Bf4 {[%emt 0:00:36]} Bb7 {[%emt 0:05:02]} 13. h4 {[%emt 0:22:04]} h5 {[%emt 0:16:51]} 14. g3 {[%emt 0:01:05]} O-O-O {[%emt 0:02:36]} 15. Bh3 {[%emt 0:06:35]} Qc6 {[%emt 0:11:31]} 16. Bxf5 {[%emt 0:08:30]} exf5 {[%emt 0:00:11]} 17. Ng5 {[%emt 0:00:02]} Qg6 {[%emt 0:03:28]} 18. Qc4 {[%emt 0:02:29]} Bxh1 {[%emt 0:13:47]} 19. Rxh1 {[%emt 0:00:08]} Qc6 {[%emt 0:00:58]} 20. Rd1 {[%emt 0:00:36]} Be7 {[%emt 0:14:20]} 21. Nxf7 {[%emt 0:00:30]} Rhf8 {[%emt 0:04:14]} 22. Nxd8 {[%emt 0:00:21]} Kxd8 {[%emt 0:00:08]} 23. Qa6 {[%emt 0:06:09]} Qc7 {[%emt 0:01:40]} 24. Qe2 {[%emt 0:00:11]} g6 {[%emt 0:00:34]} 25. e6 {[%emt 0:03:08]} d6 {[%emt 0:00:03]} 26. Qe5 {[%emt 0:01:56]} Qc6 {[%emt 0:03:11]} 27. Qg7 {[%emt 0:01:12]} d5 {[%emt 0:01:54]} 28. Qe5 {[%emt 0:01:08]} 1-0

[Event "Gonzaga Classic Masters 2020"]
[Site "Dublin/"]
[Date "2020.01.26"]
[Round "4.5"]
[White "Saric, Ante"]
[Black "O`Donnell, Conor"]
[Result "1/2-1/2"]
[ECO "A13"]
[WhiteElo "2559"]
[BlackElo "2307"]
[Annotator "ChessBase"]
[PlyCount "99"]
[EventDate "2020.01.24"]
[EventType "swiss"]
[EventCountry "IRL"]
[SourceTitle "playchess.com"]
[Source "ChessBase"]
[SourceQuality "1"]
[TimeControl "5400+30"]

1. c4 {[%emt 1:30:30]} e6 {[%emt 1:30:30]} 2. g3 {[%emt 0:00:30]} d5 {[%emt 0:00:30]} 3. Bg2 {[%emt 0:00:30]} Nf6 {[%emt 0:00:30]} 4. Nf3 {[%emt 0:00:30]} dxc4 {[%emt 0:00:30]} 5. Qa4+ {[%emt 0:00:30]} Nbd7 {[%emt 0:00:30]} 6. Qxc4 {[%emt 0:00:30]} c5 {[%emt 0:00:30]} 7. d3 {[%emt 0:00:30]} Bd6 {[%emt 0:00:30]} 8. Nc3 {[%emt 0:00:30]} a6 {[%emt 0:00:30]} 9. a4 {[%emt 0:00:30]} b6 {[%emt 0:00:30]} 10. Ng5 {[%emt 0:00:30]} Rb8 {[%emt 0:00:30]} 11. Nce4 {[%emt 0:00:30]} Nxe4 {[%emt 0:00:30]} 12. Nxe4 {[%emt 0:00:30]} Be7 {[%emt 0:00:30]} 13. d4 {[%emt 0:00:30]} cxd4 {[%emt 0:00:30]} 14. Qxd4 {[%emt 0:00:30]} O-O {[%emt 0:00:30]} 15. O-O {[%emt 0:00:30]} e5 {[%emt 0:00:30]} 16. Qd1 {[%emt 0:00:30]} Nc5 {[%emt 0:00:30]} 17. Be3 {[%emt 0:00:30]} Qxd1 {[%emt 0:00:30]} 18. Rfxd1 {[%emt 0:00:30]} Be6 {[%emt 0:00:30]} 19. Nc3 {[%emt 0:00:30]} Nb3 {[%emt 0:00:30]} 20. Rab1 {[%emt 0:00:30]} Bf5 {[%emt 0:00:30]} 21. Be4 {[%emt 0:00:30]} Bxe4 {[%emt 0:00:30]} 22. Nxe4 {[%emt 0:00:30]} f5 {[%emt 0:00:30]} 23. Rd7 {[%emt 0:00:30]} Bd8 {[%emt 0:00:30]} 24. Nd2 {[%emt 0:00:30]} Nxd2 {[%emt 0:00:30]} 25. Bxd2 {[%emt 0:00:30]} Rf7 {[%emt 0:00:30]} 26. Rd5 {[%emt 0:00:30]} Bc7 {[%emt 0:00:30]} 27. Bc3 {[%emt 0:00:30]} Re8 {[%emt 0:00:30]} 28. f3 {[%emt 0:00:30]} Re6 {[%emt 0:00:30]} 29. Rbd1 {[%emt 0:00:30]} Kf8 {[%emt 0:00:30]} 30. Kg2 {[%emt 0:00:30]} Ke8 {[%emt 0:00:30]} 31. e4 {[%emt 0:00:30]} g6 {[%emt 0:00:30]} 32. R1d3 {[%emt 0:00:30]} h5 {[%emt 0:00:30]} 33. Bd2 {[%emt 0:00:30]} Rc6 {[%emt 0:00:30]} 34. Bc3 {[%emt 0:00:30]} Re7 {[%emt 0:00:30]} 35. b3 {[%emt 0:00:30]} Ree6 {[%emt 0:00:30]} 36. Kf2 {[%emt 0:00:30]} Rcd6 {[%emt 0:00:30]} 37. Ke2 {[%emt 0:00:30]} Kd7 {[%emt 0:00:30]} 38. h3 {[%emt 0:00:30]} Re8 {[%emt 0:00:30]} 39. Ke3 {[%emt 0:00:30]} Rxd5 {[%emt 0:00:30]} 40. Rxd5+ {[%emt 0:00:30]} Ke6 {[%emt 0:00:30]} 41. Rd1 {[%emt 0:00:30]} Bd6 {[%emt 0:00:30]} 42. Rd5 {[%emt 0:00:30]} Rc8 {[%emt 0:00:30]} 43. Kd3 {[%emt 0:00:30]} Rb8 {[%emt 0:00:30]} 44. Bd2 {[%emt 0:00:30]} Rb7 {[%emt 0:00:30]} 45. Be3 {[%emt 0:00:30]} b5 {[%emt 0:00:30]} 46. axb5 {[%emt 0:00:30]} Rxb5 {[%emt 0:00:30]} 47. Rxb5 {[%emt 0:00:30]} axb5 {[%emt 0:00:30]} 48. g4 {[%emt 0:00:30]} hxg4 {[%emt 0:00:30]} 49. exf5+ {[%emt 0:00:30]} gxf5 {[%emt 0:00:30]} 50. hxg4 {[%emt 0:00:30]} 1/2-1/2

[Event "Gonzaga Classic Masters 2020"]
[Site "Dublin/"]
[Date "2020.01.26"]
[Round "4.7"]
[White "Delaney, Killian"]
[Black "Collins, Sam E."]
[Result "0-1"]
[ECO "D02"]
[WhiteElo "2278"]
[BlackElo "2446"]
[Annotator "ChessBase"]
[PlyCount "40"]
[EventDate "2020.01.24"]
[EventType "swiss"]
[EventCountry "IRL"]
[SourceTitle "playchess.com"]
[Source "ChessBase"]
[SourceQuality "1"]
[TimeControl "5400+30"]

1. Nf3 {[%emt 1:30:30]} d5 {[%emt 1:30:30]} 2. d4 {[%emt 0:00:30]} Nf6 {[%emt 0:00:30]} 3. Bf4 {[%emt 0:00:30]} c5 {[%emt 0:00:30]} 4. e3 {[%emt 0:00:30]} Nc6 {[%emt 0:00:30]} 5. Nbd2 {[%emt 0:00:30]} e6 {[%emt 0:00:30]} 6. c3 {[%emt 0:00:30]} h6 {[%emt 0:00:30]} 7. Ne5 {[%emt 0:00:30]} Nxe5 {[%emt 0:00:30]} 8. Bxe5 {[%emt 0:00:30]} Be7 {[%emt 0:00:30]} 9. Bd3 {[%emt 0:00:30]} Qb6 {[%emt 0:00:30]} 10. O-O {[%emt 0:00:30]} c4 {[%emt 0:00:30]} 11. Bc2 {[%emt 0:00:30]} Qxb2 {[%emt 0:00:30]} 12. Ba4+ {[%emt 0:00:30]} Kf8 {[%emt 0:00:30]} 13. e4 {[%emt 0:00:30]} Qxc3 {[%emt 0:00:30]} 14. f4 {[%emt 0:00:30]} Qe3+ {[%emt 0:00:30]} 15. Kh1 {[%emt 0:00:30]} c3 {[%emt 0:00:30]} 16. Bxf6 {[%emt 0:00:30]} gxf6 {[%emt 0:00:30]} 17. Nf3 {[%emt 0:00:30]} dxe4 {[%emt 0:00:30]} 18. Nh4 {[%emt 0:00:30]} f5 {[%emt 0:00:30]} 19. Qh5 {[%emt 0:00:30]} Qxd4 {[%emt 0:00:30]} 20. Bb3 {[%emt 0:00:30]} Qf6 {[%emt 0:00:30]} 0-1

[Event "Gonzaga Classic Masters 2020"]
[Site "Dublin/"]
[Date "2020.01.26"]
[Round "4.8"]
[White "Daly, Colm"]
[Black "Lalic, Bogdan"]
[Result "1/2-1/2"]
[ECO "E61"]
[WhiteElo "2238"]
[BlackElo "2402"]
[Annotator "ChessBase"]
[PlyCount "40"]
[EventDate "2020.01.24"]
[EventType "swiss"]
[EventCountry "IRL"]
[SourceTitle "playchess.com"]
[Source "ChessBase"]
[SourceQuality "1"]
[TimeControl "5400+30"]

1. Nf3 {[%emt 0:04:17]} c5 {[%emt 0:00:00]} 2. e3 {[%emt 0:02:48]} g6 {[%emt 0:00:27]} 3. c4 {[%emt 0:00:46]} Bg7 {[%emt 0:00:16]} 4. Nc3 {[%emt 0:00:11]} Nf6 {[%emt 0:00:22]} 5. d4 {[%emt 0:00:19]} O-O {[%emt 0:00:58]} 6. d5 {[%emt 0:00:23]} d6 {[%emt 0:00:12]} 7. h3 {[%emt 0:00:13]} e6 {[%emt 0:00:14]} 8. e4 {[%emt 0:02:01]} exd5 {[%emt 0:00:12]} 9. exd5 {[%emt 0:00:07]} Re8+ {[%emt 0:03:18]} 10. Be2 {[%emt 0:00:26]} Bf5 {[%emt 0:00:05]} 11. O-O {[%emt 0:00:18]} Ne4 {[%emt 0:00:07]} 12. Nxe4 {[%emt 0:00:55]} Bxe4 {[%emt 0:00:06]} 13. Bd3 {[%emt 0:02:07]} Na6 {[%emt 0:05:49]} 14. Bxe4 {[%emt 0:01:37]} Rxe4 {[%emt 0:00:10]} 15. Qc2 {[%emt 0:00:15]} Qe8 {[%emt 0:03:52]} 16. Bd2 {[%emt 0:02:40]} Nb4 {[%emt 0:03:00]} 17. Bxb4 {[%emt 0:00:30]} cxb4 {[%emt 0:00:05]} 18. Rae1 {[%emt 0:02:02]} Rxe1 {[%emt 0:03:34]} 19. Rxe1 {[%emt 0:00:06]} Qd7 {[%emt 0:00:04]} 20. Re2 {[%emt 0:03:01]} Rc8 {[%emt 1:17:09]} 1/2-1/2

[Event "Gonzaga Classic Masters 2020"]
[Site "Dublin/"]
[Date "2020.01.26"]
[Round "4.9"]
[White "Melaugh, Shane"]
[Black "Kanyamarala, Tarun"]
[Result "0-1"]
[ECO "A21"]
[WhiteElo "2207"]
[BlackElo "2320"]
[Annotator "ChessBase"]
[PlyCount "68"]
[EventDate "2020.01.24"]
[EventType "swiss"]
[EventCountry "IRL"]
[SourceTitle "playchess.com"]
[Source "ChessBase"]
[SourceQuality "1"]
[TimeControl "5400+30"]

1. c4 {[%emt 0:00:00]} e5 {[%emt 0:00:00]} 2. Nc3 {[%emt 0:00:00]} Bb4 {[%emt 0:00:05]} 3. g3 {[%emt 0:01:02]} Bxc3 {[%emt 0:01:52]} 4. dxc3 {[%emt 0:00:20]} d6 {[%emt 0:02:53]} 5. Bg2 {[%emt 0:00:34]} Ne7 {[%emt 0:00:29]} 6. Nf3 {[%emt 0:02:28]} Nbc6 {[%emt 0:00:30]} 7. O-O {[%emt 0:00:12]} O-O {[%emt 0:01:16]} 8. e4 {[%emt 0:00:46]} Be6 {[%emt 0:03:00]} 9. Qe2 {[%emt 0:00:47]} f6 {[%emt 0:02:15]} 10. Rd1 {[%emt 0:00:22]} Qe8 {[%emt 0:02:59]} 11. Be3 {[%emt 0:00:06]} b6 {[%emt 0:03:41]} 12. b3 {[%emt 0:02:23]} Qf7 {[%emt 0:07:51]} 13. Nh4 {[%emt 0:02:00]} Qe8 {[%emt 0:12:36]} 14. f4 {[%emt 0:11:27]} exf4 {[%emt 0:06:47]} 15. gxf4 {[%emt 0:00:35]} f5 {[%emt 0:02:23]} 16. Bf2 {[%emt 0:07:15]} fxe4 {[%emt 0:08:12]} 17. Qxe4 {[%emt 0:00:12]} Bd7 {[%emt 0:00:13]} 18. Re1 {[%emt 0:01:00]} Qf7 {[%emt 0:01:32]} 19. Bg3 {[%emt 0:03:19]} Rae8 {[%emt 0:01:10]} 20. Qd3 {[%emt 0:00:16]} Nd8 {[%emt 0:11:48]} 21. Be4 {[%emt 0:01:08]} Qh5 {[%emt 0:00:28]} 22. Re2 {[%emt 0:03:33]} Ne6 {[%emt 0:09:35]} 23. Bd5 {[%emt 0:01:17]} Nxd5 {[%emt 0:00:39]} 24. Qxd5 {[%emt 0:01:00]} Qxe2 {[%emt 0:01:59]} 25. Re1 {[%emt 0:00:09]} Qg4 {[%emt 0:00:39]} 26. f5 {[%emt 0:00:05]} c6 {[%emt 0:01:54]} 27. Qxd6 {[%emt 0:00:07]} Nc5 {[%emt 0:00:16]} 28. Rxe8 {[%emt 0:00:29]} Rxe8 {[%emt 0:00:23]} 29. b4 {[%emt 0:00:23]} Re1+ {[%emt 0:00:33]} 30. Kg2 {[%emt 0:00:03]} Qe4+ {[%emt 0:00:25]} 31. Nf3 {[%emt 0:00:25]} Re2+ {[%emt 0:00:22]} 32. Bf2 {[%emt 0:00:05]} Qg4+ {[%emt 0:00:09]} 33. Qg3 {[%emt 0:00:38]} Rxf2+ {[%emt 0:00:15]} 34. Kxf2 {[%emt 0:00:06]} Ne4+ {[%emt 0:00:06]} 0-1

[Event "Gonzaga Classic Masters 2020"]
[Site "Dublin/"]
[Date "2020.01.26"]
[Round "4.10"]
[White "Carroll, Peter"]
[Black "Kanyamarala, Trisha"]
[Result "0-1"]
[ECO "B30"]
[WhiteElo "2087"]
[BlackElo "2195"]
[Annotator "NA"]
[PlyCount "72"]
[EventDate "2020.01.24"]
[EventType "swiss"]
[EventCountry "IRL"]
[SourceTitle "playchess.com"]
[Source "ChessBase"]
[SourceQuality "1"]
[TimeControl "5400+30"]

1. e4 {[%emt 0:10:44]} c5 {[%emt 0:00:00]} 2. Nc3 {[%emt 0:00:06]} Nc6 {[%emt 0:00:16]} 3. Bb5 {[%emt 0:00:06]} Nd4 {[%emt 0:01:21]} 4. Nf3 {[%emt 0:00:08]} a6 {[%emt 0:05:10]} 5. Bd3 {[%emt 0:00:10]} e6 {[%emt 0:07:24]} 6. O-O {[%emt 0:00:12]} d6 {[%emt 0:03:48]} 7. Nxd4 {[%emt 0:01:30]} cxd4 {[%emt 0:00:08]} 8. Ne2 {[%emt 0:00:02]} Qb6 {[%emt 0:01:43]} 9. f4 $14 {[%emt 0:01:56]} Nf6 {[%emt 0:01:17]} 10. Kh1 {[%emt 0:00:18]} Be7 {[%emt 0:03:32]} 11. Qe1 {[%emt 0:05:01]} O-O {[%emt 0:17:05]} 12. Qf2 {[%emt 0:03:55]} e5 {[%emt 0:02:54]} 13. c3 {[%emt 0:00:50]} Bg4 {[%emt 0:08:32]} 14. Ng1 {[%emt 0:06:55]} Bd7 {[%emt 0:02:10]} 15. cxd4 {[%emt 0:06:22]} Ng4 {[%emt 0:04:55]} 16. Qg3 {[%emt 0:03:30]} Qxd4 {[%emt 0:01:31]} 17. Be2 {[%emt 0:00:49]} exf4 {[%emt 0:06:00]} 18. Rxf4 {[%emt 0:03:45]} Ne5 {[%emt 0:00:50]} 19. Qc3 {[%emt 0:06:44]} Qb6 {[%emt 0:02:32]} 20. d4 {[%emt 0:05:09]} Rac8 {[%emt 0:00:25]} 21. Qb3 {[%emt 0:00:14]} Qxb3 {[%emt 0:00:57]} 22. axb3 {[%emt 0:00:01]} Nc6 {[%emt 0:01:09]} 23. d5 {[%emt 0:07:20]} Nd4 {[%emt 0:00:54]} 24. Rf1 {[%emt 0:01:50]} Nxb3 {[%emt 0:01:59]} 25. Rb1 {[%emt 0:00:05]} Bf6 {[%emt 0:02:10]} 26. Rxf6 {[%emt 0:01:38]} gxf6 {[%emt 0:00:32]} 27. Bf4 {[%emt 0:00:09]} Rfe8 {[%emt 0:02:36]} 28. Bxd6 {[%emt 0:03:49]} Rxe4 {[%emt 0:00:29]} 29. Rf1 {[%emt 0:00:05]} Rc1 {[%emt 0:11:33]} 30. Rf3 {[%emt 0:05:31]} Rxe2 {[%emt 0:02:57]} 31. Rg3+ {[%emt 0:00:12]} Kh8 {[%emt 0:00:04]} 32. Bf8 {[%emt 0:00:03]} h5 {[%emt 0:00:15]} 33. Bg7+ {[%emt 0:00:06]} Kh7 {[%emt 0:00:10]} 34. Bxf6 {[%emt 0:00:04]} Ree1 {[%emt 0:02:14]} 35. Rg7+ {[%emt 0:00:07]} Kh6 {[%emt 0:00:03]} 36. Rg8 {[%emt 0:00:36]} Rxg1# {[%emt 0:00:06]} 0-1

[Event "Gonzaga Classic Masters 2020"]
[Site "Dublin/"]
[Date "2020.01.26"]
[Round "4.11"]
[White "Peoples, Jonathon"]
[Black "Haque, Muhtarim-Ul"]
[Result "1/2-1/2"]
[ECO "E97"]
[WhiteElo "1909"]
[BlackElo "2045"]
[Annotator "NA"]
[PlyCount "72"]
[EventDate "2020.01.24"]
[EventType "swiss"]
[EventCountry "IRL"]
[SourceTitle "playchess.com"]
[Source "ChessBase"]
[SourceQuality "1"]
[TimeControl "5400+30"]

1. d4 {[%emt 1:30:30]} Nf6 {[%emt 1:30:30]} 2. c4 {[%emt 0:00:30]} g6 {[%emt 0:00:30]} 3. Nc3 {[%emt 0:00:30]} Bg7 {[%emt 0:00:30]} 4. e4 {[%emt 0:00:30]} d6 {[%emt 0:00:30]} 5. Nf3 {[%emt 0:00:30]} O-O {[%emt 0:00:30]} 6. Be2 {[%emt 0:00:30]} e5 {[%emt 0:00:30]} 7. O-O {[%emt 0:00:30]} Nc6 {[%emt 0:00:30]} 8. d5 {[%emt 0:00:30]} Ne7 {[%emt 0:00:30]} 9. b4 {[%emt 0:00:30]} Nh5 {[%emt 0:00:30]} 10. Re1 {[%emt 0:00:30]} a5 {[%emt 0:00:30]} 11. Ba3 {[%emt 0:00:30]} Nf4 {[%emt 0:00:30]} 12. Bf1 {[%emt 0:00:30]} f5 {[%emt 0:00:30]} 13. bxa5 {[%emt 0:00:30]} fxe4 {[%emt 0:00:30]} 14. Nxe4 {[%emt 0:00:30]} (14. Nd2 $11) 14... Bg4 {[%emt 0:00:30]} 15. Qb3 {[%emt 0:00:30]} Kh8 {[%emt 0:00:30]} (15... Nh3+ $11 {remains equal.} 16. gxh3 Rxf3) 16. Rab1 {[%emt 0:00:30]} Rxa5 {[%emt 0:00:30]} 17. Bb4 $11 {[%emt 0:00:30]} Ra8 {[%emt 0:00:30]} 18. c5 {[%emt 0:00:30]} Nexd5 {[%emt 0:00:30]} 19. cxd6 {[%emt 0:00:30]} Nxb4 {[%emt 0:00:30]} 20. dxc7 {[%emt 0:00:30]} Qxc7 {[%emt 0:00:30]} 21. Qxb4 {[%emt 0:00:30]} Rxa2 {[%emt 0:00:30]} 22. Qxb7 {[%emt 0:00:30]} Qxb7 {[%emt 0:00:30]} 23. Rxb7 {[%emt 0:00:30]} Nh3+ {[%emt 0:00:30]} 24. gxh3 {[%emt 0:00:30]} Bxf3 {[%emt 0:00:30]} 25. Bg2 {[%emt 0:00:30]} Bxe4 {[%emt 0:00:30]} 26. Bxe4 {[%emt 0:00:30]} Raxf2 {[%emt 0:00:30]} 27. Rc1 {[%emt 0:00:30]} R2f7 {[%emt 0:00:30]} 28. Rxf7 {[%emt 0:00:30]} Rxf7 {[%emt 0:00:30]} 29. Rc8+ {[%emt 0:00:30]} Rf8 {[%emt 0:00:30]} 30. Rxf8+ {[%emt 0:00:30]} Bxf8 {[%emt 0:00:30]} 31. Kg2 {[%emt 0:00:30]} Kg7 {[%emt 0:00:30]} 32. Kg3 {[%emt 0:00:30]} Kf6 {[%emt 0:00:30]} 33. h4 {[%emt 0:00:30]} h6 {[%emt 0:00:30]} 34. h5 {[%emt 0:00:30]} g5 {[%emt 0:00:30]} 35. Kg4 {[%emt 0:00:30]} Ke6 {[%emt 0:00:30]} 36. h4 {[%emt 0:00:30]} Be7 {[%emt 0:00:30]} 1/2-1/2

[Event "Gonzaga Classic Masters 2020"]
[Site "Dublin/"]
[Date "2020.01.26"]
[Round "4.12"]
[White "Murray, David"]
[Black "Brewer, Callum D"]
[Result "1-0"]
[ECO "B12"]
[WhiteElo "2140"]
[BlackElo "2134"]
[Annotator "NA"]
[PlyCount "63"]
[EventDate "2020.01.24"]
[EventType "swiss"]
[EventCountry "IRL"]
[SourceTitle "playchess.com"]
[Source "ChessBase"]
[SourceQuality "1"]
[TimeControl "5400+30"]

1. e4 {[%emt 0:06:16]} c6 {[%emt 0:01:52]} 2. d4 {[%emt 0:04:58]} d5 {[%emt 0:00:02]} 3. e5 {[%emt 0:00:14]} Bf5 {[%emt 0:00:01]} 4. h4 {[%emt 0:00:41]} h5 {[%emt 0:00:37]} 5. Bd3 {[%emt 0:01:27]} Bxd3 {[%emt 0:00:12]} 6. Qxd3 {[%emt 0:00:07]} Qa5+ {[%emt 0:00:09]} 7. Nd2 {[%emt 0:01:14]} e6 {[%emt 0:02:18]} 8. Ngf3 {[%emt 0:01:37]} Ne7 {[%emt 0:06:22]} 9. O-O {[%emt 0:01:55]} Nf5 {[%emt 1:22:57]} 10. b3 {[%emt 0:02:04]} Nd7 {[%emt 0:00:30]} 11. c4 {[%emt 0:04:14]} Be7 {[%emt 0:00:00]} 12. a4 {[%emt 0:03:34]} O-O {[%emt 0:00:00]} 13. Ba3 {[%emt 0:02:32]} Bxa3 {[%emt 0:00:00]} 14. Rxa3 $11 {[%emt 0:00:19]} Qb4 {[%emt 0:00:00]} 15. Ra2 {[%emt 0:03:24]} Rfd8 {[%emt 0:00:00]} 16. Rc1 {[%emt 0:14:03]} dxc4 {[%emt 0:00:00]} 17. Rxc4 {[%emt 0:49:51]} Qe7 {[%emt 0:00:00]} 18. a5 {[%emt 0:00:00]} c5 {[%emt 0:00:00]} 19. d5 {[%emt 0:00:00]} exd5 {[%emt 0:00:00]} 20. Rf4 {[%emt 0:00:00]} Nh6 {[%emt 0:00:00]} 21. Ng5 {[%emt 0:00:00]} Nf8 {[%emt 0:00:00]} 22. Nf1 {[%emt 0:00:00]} Qxe5 {[%emt 0:00:00]} 23. Qf3 {[%emt 0:00:00]} Ng6 {[%emt 0:00:42]} 24. Rxf7 {[%emt 0:00:00]} Nxh4 {[%emt 0:00:11]} 25. Qxh5 {[%emt 0:00:00]} Nxf7 {[%emt 0:04:42]} 26. Qxf7+ {[%emt 0:00:00]} Kh8 {[%emt 0:00:04]} 27. Qh5+ {[%emt 0:00:00]} Kg8 {[%emt 0:00:02]} 28. Qh7+ {[%emt 0:00:00]} Kf8 {[%emt 0:00:06]} 29. Qxh4 {[%emt 0:00:00]} d4 {[%emt 0:02:59]} 30. Qh5 {[%emt 0:00:00]} Qd5 {[%emt 0:00:40]} 31. Re2 {[%emt 0:00:48]} d3 {[%emt 0:00:12]} 32. Re6 {[%emt 0:01:17]} 1-0